fUSD/lending_fUSD_20250511
["ID","MTS","AMOUNT","RATE_DAILY","PERIOD"]
[360685648,1746928232261,-129.1959177,0.00018828,2]
[360685649,1746928232273,-150.0,0.0001883,2]
[360685650,1746928232283,-216.5,0.00018869,2]
[360685651,1746928232295,-156.32,0.00018875,2]
[360685652,1746928232306,-200.0,0.00018906,2]
[360685653,1746928232317,-1000.0,0.00018955,2]
[360685654,1746928232328,-184.62356847,0.0001899,2]
[360685655,1746928232339,-151.0,0.0001909,2]
[360685656,1746928232350,-155.0,0.0001909,2]
[360685657,1746928232360,-207.4,0.0001909,2]
[360685658,1746928232370,-694.98292506,0.0001909,2]
[360685660,1746928232380,-151.59257418,0.0001909,2]
[360685662,1746928232390,-126.15942278,0.00019096,2]
[360685669,1746928232456,-709.14057722,0.00019096,2]
[360685672,1746928232466,-200.0,0.00019101,2]
[360685674,1746928232475,-151.0,0.00019178,2]
[360685675,1746928232490,-200.0,0.00019243,2]
[360685677,1746928232499,-250.0,0.0001938,2]
[360685679,1746928232509,-281.3661,0.00019521,2]
[360685681,1746928232518,-567.09538805,0.0001953,2]
[360685683,1746928232529,-186.19327491,0.0001953,2]
[360685685,1746928232539,-230.3,0.000196,2]
[360685687,1746928232548,-157.76044335,0.00019698,2]
[360685689,1746928232557,-262.8693869,0.00019699,2]
[360685691,1746928232568,-52.6306131,0.00019699,2]
[360685693,1746928232578,-157.75,0.000197,2]
[360685695,1746928232587,-153.75532764,0.00019706,3]
[360685697,1746928232596,-3762.1973,0.00019706,2]
[360685699,1746928232606,-366.6182,0.00019707,2]
[360685701,1746928232615,-156.587,0.00019726,2]
[360685703,1746928232624,-1375.384,0.00019728,2]
[360685705,1746928232634,-546.0,0.00019728,2]
[360685707,1746928232643,-300.0,0.00019741,2]
[360685709,1746928232652,-500.0,0.00019753,2]
[360685711,1746928232661,-300.0,0.00019773,2]
[360685713,1746928232670,-300.0,0.00019785,2]
[360685715,1746928232679,-289.3898,0.000198,2]
[360685717,1746928232688,-1000.0,0.000198,2]
[360685718,1746928232698,-922.0,0.000198,3]
[360685720,1746928232707,-500.0,0.00019805,2]
[360685722,1746928232717,-500.0,0.00019805,2]
[360685723,1746928232726,-500.0,0.00019805,2]
[360685724,1746928232740,-500.0,0.00019805,2]
[360685725,1746928232750,-500.0,0.00019805,2]
[360685726,1746928232759,-500.0,0.00019805,2]
[360685727,1746928232769,-500.0,0.00019805,2]
[360685728,1746928232778,-500.0,0.00019805,2]
[360685729,1746928232787,-500.0,0.00019805,2]
[360685730,1746928232797,-629.18339495,0.00019805,2]
[360685731,1746928232806,-500.0,0.00019805,2]
[360685732,1746928232815,-500.0,0.00019805,2]
[360685733,1746928232824,-500.0,0.00019805,2]
[360685734,1746928232834,-500.0,0.00019805,2]
[360685735,1746928232843,-413.66276042,0.00019806,2]
[360685736,1746928232853,-400.0,0.00019806,2]
[360685737,1746928232863,-429.44285891,0.00019806,2]
[360685738,1746928232873,-422.3099654,0.00019806,2]
[360685739,1746928232883,-429.34905678,0.00019806,2]
[360685740,1746928232892,-434.26965505,0.00019806,2]
[360685741,1746928232902,-412.96983475,0.00019806,2]
[360685742,1746928232911,-417.8768039,0.00019806,2]
[360685743,1746928232921,-420.60263144,0.00019806,2]
[360685744,1746928232931,-422.16874629,0.00019806,2]
[360685745,1746928232940,-400.0,0.00019806,2]
[360685746,1746928232951,-411.87843978,0.00019806,2]
[360685747,1746928232960,-311.90784488,0.00019806,2]
[360685748,1746928232970,-400.0,0.00019806,2]
[360685749,1746928232980,-195.87748367,0.00019806,2]
[360685750,1746928232993,-418.9355637,0.00019806,2]
[360685751,1746928233003,-400.0,0.00019806,2]
[360685752,1746928233012,-407.30642717,0.00019806,2]
[360685753,1746928233021,-415.88336861,0.00019806,2]
[360685754,1746928233031,-406.46590141,0.00019806,2]
[360685755,1746928233041,-406.43467666,0.00019806,2]
[360685756,1746928233051,-406.62318553,0.00019806,2]
[360685757,1746928233062,-514.49297196,0.00019806,2]
[360685758,1746928233072,-400.0,0.00019806,2]
[360685759,1746928233083,-502.99141604,0.00019806,2]
[360685760,1746928233337,-402.77110649,0.00019806,2]
[360685761,1746928233348,-419.44815406,0.00019806,2]
[360685762,1746928233358,-411.61320558,0.00019806,2]
[360685763,1746928233369,-402.74868447,0.00019806,2]
[360685764,1746928233379,-426.62510075,0.00019806,2]
[360685765,1746928233388,-410.21849452,0.00019806,2]
[360685766,1746928233398,-400.0,0.00019806,2]
[360685767,1746928233408,-418.33751746,0.00019806,2]
[360685768,1746928233417,-400.0,0.00019806,2]
[360685769,1746928233427,-400.0,0.00019806,2]
[360685770,1746928233436,-400.0,0.00019806,2]
[360685771,1746928233447,-400.0,0.00019806,2]
[360685772,1746928233456,-400.0,0.00019806,2]
[360685773,1746928233466,-400.0,0.00019806,2]
[360685774,1746928233476,-416.53,0.00019806,2]
[360685775,1746928233489,-400.0,0.00019806,2]
[360685776,1746928233498,-400.0,0.00019806,2]
[360685777,1746928233508,-413.90613618,0.00019806,2]
[360685778,1746928233518,-400.0,0.00019806,2]
[360685779,1746928233528,-400.0,0.00019806,2]
[360685780,1746928233538,-400.0,0.00019806,2]
[360685781,1746928233548,-400.0,0.00019806,2]
[360685782,1746928233558,-400.0,0.00019806,2]
[360685783,1746928233568,-400.0,0.00019806,2]
[360685784,1746928233578,-400.0,0.00019806,2]
[360685785,1746928233588,-400.0,0.00019806,2]
[360685786,1746928233598,-300.0,0.00019806,2]
[360685787,1746928233609,-400.0,0.00019806,2]
[360685788,1746928233618,-400.0,0.00019806,2]
[360685789,1746928233628,-400.0,0.00019806,2]
[360685790,1746928233637,-400.0,0.00019806,2]
[360685791,1746928233647,-400.0,0.00019806,2]
[360685792,1746928233656,-400.0,0.00019806,2]
[360685793,1746928233666,-452.13363066,0.00019806,2]
[360685794,1746928233676,-130.90142599,0.00019806,2]
[360685795,1746928233689,-269.09857401,0.00019806,2]
[360685796,1746928233699,-400.0,0.00019806,2]
[360685797,1746928233709,-400.0,0.00019806,2]
[360685798,1746928233718,-1376.0,0.00019806,2]
[360685799,1746928233728,-530.86129663,0.00019806,2]
[360685800,1746928233743,-161.38089277,0.00019806,2]
[360685801,1746928233753,-457.42,0.00019806,2]
[360685802,1746928233763,-526.61,0.00019806,2]
[360685803,1746928233773,-400.0,0.00019806,2]
[360685804,1746928233783,-458.71488741,0.00019806,2]
[360685805,1746928233793,-458.95125439,0.00019806,2]
[360685806,1746928233803,-400.0,0.00019806,2]
[360685807,1746928233813,-534.8121,0.00019806,2]
[360685808,1746928233823,-1108.59,0.00019806,2]
[360685809,1746928233832,-400.0,0.00019806,2]
[360685810,1746928233842,-400.0,0.00019806,2]
[360685811,1746928233851,-400.0,0.00019806,2]
[360685812,1746928233861,-400.0,0.00019806,2]
[360685813,1746928233871,-400.0,0.00019806,2]
[360685814,1746928233881,-789.9,0.00019806,2]
[360685815,1746928233891,-400.0,0.00019806,2]
[360685816,1746928233900,-400.0,0.00019806,2]
[360685817,1746928233910,-229.01817759,0.00019806,2]
[360685818,1746928233919,-151.45792085,0.00019856,2]
[360685819,1746928233929,-1001.27510758,0.0001987,2]
[360685820,1746928233939,-1000.0,0.0001987,2]
[360685821,1746928233948,-500.70779009,0.0001987,2]
[360685822,1746928233958,-2500.0,0.0001987,2]
[360685823,1746928233968,-1569.079,0.00019874,2]
[360685824,1746928233978,-169.36811808,0.00019891,2]
[360685825,1746928233991,-169.36811808,0.00019893,2]
[360685826,1746928234001,-1000.0,0.00019894,2]
[360685827,1746928234011,-1090.50538457,0.00019894,2]
[360685828,1746928234020,-1090.50538455,0.00019895,2]
[360685829,1746928234030,-156.26581633,0.00019895,2]
[360685830,1746928234040,-500.0,0.00019895,2]
[360685831,1746928234050,-1090.50538455,0.00019895,2]
[360685832,1746928234059,-169.36811808,0.00019896,2]
[360685833,1746928234069,-1090.50538455,0.00019896,2]
[360685834,1746928234080,-156.26581631,0.00019896,2]
[360685835,1746928234090,-1090.50538455,0.00019897,2]
[360685836,1746928234102,-463.10545841,0.00019897,2]
[360685837,1746928234113,-1090.50538455,0.00019897,2]
[360685838,1746928234123,-156.26581631,0.00019898,2]
[360685839,1746928234132,-169.36811808,0.00019898,2]
[360685840,1746928234141,-154.2961406,0.00019898,2]
[360685841,1746928234152,-1090.50538455,0.00019898,2]
[360685842,1746928234161,-1017.4841,0.00019898,2]
[360685843,1746928234170,-1090.50538455,0.00019899,2]
[360685844,1746928234181,-156.26581631,0.00019899,2]
[360685845,1746928234190,-159.37861685,0.00019899,2]
[360685846,1746928234200,-1090.50538455,0.00019899,2]
[360685847,1746928234209,-260.75251913,0.000199,2]
[360685848,1746928234218,-476.38714449,0.000199,2]
[360685849,1746928234227,-156.26581631,0.000199,2]
[360685850,1746928234240,-1090.50538455,0.000199,2]
[360685851,1746928234250,-169.36811808,0.000199,2]
[360685852,1746928234259,-230.1984886,0.000199,2]
[360685853,1746928234270,-160.22568449,0.000199,2]
[360685854,1746928234279,-301.27,0.00019946,2]
[360685855,1746928234289,-301.16,0.00019946,2]
[360685856,1746928234298,-300.03,0.00019946,2]
[360685857,1746928234307,-301.0,0.00019946,2]
[360685858,1746928234316,-303.15,0.00019946,2]
[360685859,1746928234326,-302.92,0.00019946,2]
[360685860,1746928234335,-301.45,0.00019946,2]
[360685861,1746928234344,-303.66,0.00019955,2]
[360685862,1746928234353,-301.09,0.00019955,2]
[360685863,1746928234362,-301.4,0.00019955,2]
[360685864,1746928234372,-301.69,0.00019955,2]
[360685865,1746928234381,-301.99,0.00019955,2]
[360685866,1746928234391,-303.98,0.00019955,2]
[360685867,1746928234400,-1000.0,0.0001997,2]
[360685868,1746928234410,-1000.0,0.0001997,2]
[360685869,1746928234420,-1000.0,0.0001997,2]
[360685870,1746928234429,-1000.0,0.0001997,2]
[360685871,1746928234438,-1000.0,0.0001997,2]
[360685872,1746928234448,-1000.0,0.0001997,2]
[360685873,1746928234458,-1000.0,0.0001997,2]
[360685874,1746928234468,-500.0,0.0001997,2]
[360685875,1746928234478,-500.0,0.0001997,2]
[360685876,1746928234491,-500.0,0.0001997,2]
[360685877,1746928234501,-500.0,0.0001997,2]
[360685878,1746928234511,-500.0,0.0001997,2]
[360685879,1746928234520,-500.0,0.0001997,2]
[360685880,1746928234530,-500.0,0.0001997,2]
[360685881,1746928234539,-168.0,0.00019973,2]
[360685882,1746928234549,-1018.0,0.00019973,2]
[360685883,1746928234558,-500.0,0.00019973,2]
[360685884,1746928234567,-500.0,0.00019973,2]
[360685885,1746928234578,-156.95209763,0.00019973,2]
[360685886,1746928234587,-500.0,0.00019973,2]
[360685887,1746928234597,-500.0,0.00019973,2]
[360685888,1746928234606,-158.36,0.00019979,2]
[360685889,1746928234616,-827.17,0.00019979,2]
[360685890,1746928234625,-338.5643545,0.00019986,2]
[360685891,1746928234634,-400.0,0.00019988,2]
[360685892,1746928234643,-483.3143535,0.00019988,2]
[360685893,1746928234653,-400.0,0.00019988,2]
[360685894,1746928234662,-400.0,0.00019988,2]
[360685895,1746928234671,-400.0,0.00019988,2]
[360685896,1746928234681,-400.0,0.00019988,2]
[360685897,1746928234690,-437.86693444,0.00019988,2]
[360685898,1746928234699,-400.0,0.00019988,2]
[360685899,1746928234710,-400.0,0.00019988,2]
[360685900,1746928234720,-494.12485441,0.00019988,2]
[360685901,1746928234729,-400.0,0.00019988,2]
[360685902,1746928234742,-400.0,0.00019988,2]
[360685903,1746928234751,-400.0,0.00019988,2]
[360685904,1746928234761,-400.0,0.00019988,2]
[360685905,1746928234771,-483.60607648,0.00019988,2]
[360685906,1746928234780,-60.46914719,0.00019988,2]
[360685912,1746928237816,-607.86085281,0.00019988,2]
[360685913,1746928237827,-471.27437921,0.00019988,2]
[360685914,1746928237836,-494.43026482,0.00019988,2]
[360685915,1746928237845,-400.0,0.00019988,2]
[360685916,1746928237854,-400.0,0.00019988,2]
[360685917,1746928237868,-400.0,0.00019988,2]
[360685918,1746928237878,-400.0,0.00019988,2]
[360685919,1746928237887,-400.0,0.00019988,2]
[360685920,1746928237896,-400.0,0.00019988,2]
[360685921,1746928237905,-400.0,0.00019988,2]
[360685922,1746928237914,-400.0,0.00019988,2]
[360685923,1746928237924,-382.89650316,0.00019988,2]
[360685924,1746928237942,-17.10349684,0.00019988,2]
[360685925,1746928237952,-400.0,0.00019988,2]
[360685926,1746928237961,-7.77958854,0.00019988,2]
[360685927,1746928237973,-392.22041146,0.00019988,2]
[360685928,1746928237982,-400.0,0.00019988,2]
[360685929,1746928237994,-400.0,0.00019988,2]
[360685930,1746928238003,-550.53,0.00019988,2]
[360685931,1746928238014,-257.8391808,0.00019988,2]
[360685932,1746928238025,-142.1608192,0.00019988,2]
[360685933,1746928238035,-400.0,0.00019988,2]
[360685934,1746928238044,-124.0791808,0.00019988,2]
[360685935,1746928238056,-275.9208192,0.00019988,2]
[360685936,1746928238066,-400.0,0.00019988,2]
[360685937,1746928238075,-400.0,0.00019988,2]
[360685938,1746928238084,-589.13,0.00019988,2]
[360685939,1746928238096,-400.0,0.00019988,2]
[360685940,1746928238107,-400.0,0.00019988,2]
[360685941,1746928238120,-400.0,0.00019988,2]
[360685942,1746928238130,-400.0,0.00019988,2]
[360685943,1746928238139,-400.0,0.00019988,2]
[360685944,1746928238148,-77.65135643,0.00019988,2]
[360685945,1746928238161,-322.34864357,0.00019988,2]
[360685946,1746928238170,-7.45835643,0.00019988,2]
[360685947,1746928238187,-348.14121857,0.00019988,2]
[360685948,1746928238196,-400.0,0.00019988,2]
[360685949,1746928238206,-38.23261415,0.00019988,2]
[360685953,1746928238854,-280.407,0.00019988,2]
[360685954,1746928240126,-81.36038585,0.00019988,2]
[360685955,1746928240136,-583.84,0.00019988,2]
[360685956,1746928240147,-400.0,0.00019988,2]
[360685957,1746928240156,-400.0,0.00019988,2]
[360685958,1746928240165,-400.0,0.00019988,2]
[360685959,1746928240174,-206.70575565,0.00019988,2]
[360685960,1746928240184,-427.33558222,0.00019989,2]
[360685961,1746928240194,-460.758002,0.00019989,2]
[360685962,1746928240205,-923.615,0.00019989,2]
[360685963,1746928240216,-512.77,0.00019989,2]
[360685964,1746928240234,-328.47396994,0.00019989,2]
[360685965,1746928240288,-8859.13816234,0.00019989,2]
[360685966,1746928240298,-3684.6110973,0.00019989,2]
[360685967,1746928240307,-72745.5788408,0.00019989,2]
[360685968,1746928240315,-17373.6668879,0.00019989,2]
[360685969,1746928240325,-424.0150329,0.00019989,2]
[360685970,1746928240334,-201.36487175,0.0001999,2]
[360685971,1746928240343,-200.61192901,0.0001999,2]
[360685972,1746928240352,-500.0,0.0001999,2]
[360685973,1746928240361,-500.0,0.0001999,2]
[360685974,1746928240369,-500.0,0.0001999,2]
[360685975,1746928240378,-500.0,0.0001999,2]
[360685976,1746928240387,-500.0,0.0001999,2]
[360685977,1746928240396,-500.0,0.0001999,2]
[360685978,1746928240406,-500.0,0.0001999,2]
[360685979,1746928240415,-330.32027976,0.0001999,2]
[360685980,1746928240424,-500.0,0.0001999,2]
[360685981,1746928240433,-500.0,0.0001999,2]
[360685982,1746928240442,-400.0,0.00019991,2]
[360685983,1746928240451,-400.0,0.00019991,2]
[360685984,1746928240460,-400.0,0.00019991,2]
[360685985,1746928240468,-428.90498614,0.00019991,2]
[360685986,1746928240478,-400.0,0.00019991,2]
[360685987,1746928240487,-400.0,0.00019991,2]
[360685988,1746928240498,-400.0,0.00019991,2]
[360685989,1746928240507,-400.0,0.00019991,2]
[360685990,1746928240516,-400.0,0.00019991,2]
[360685991,1746928240525,-416.53,0.00019991,2]
[360685992,1746928240534,-400.0,0.00019991,2]
[360685993,1746928240544,-472.53551619,0.00019991,2]
[360685994,1746928240553,-425.92129707,0.00019991,2]
[360685995,1746928240562,-425.56807831,0.00019991,2]
[360685996,1746928240571,-400.0,0.00019991,2]
[360685997,1746928240580,-400.0,0.00019991,2]
[360685999,1746928240589,-400.0,0.00019991,2]
[360686000,1746928240598,-400.0,0.00019991,2]
[360686001,1746928240607,-400.0,0.00019991,2]
[360686002,1746928240616,-400.0,0.00019991,2]
[360686003,1746928240625,-418.89718204,0.00019991,2]
[360686004,1746928240635,-400.0,0.00019991,2]
[360686005,1746928240644,-400.0,0.00019991,2]
[360686006,1746928240653,-401.95498554,0.00019991,2]
[360686007,1746928240663,-400.0,0.00019991,2]
[360686008,1746928240672,-400.0,0.00019991,2]
[360686009,1746928240681,-400.0,0.00019991,2]
[360686010,1746928240690,-400.0,0.00019991,2]
[360686011,1746928240699,-532.79435132,0.00019991,2]
[360686012,1746928240709,-457.42,0.00019994,2]
[360686013,1746928240719,-526.61,0.00019994,2]
[360686014,1746928240729,-400.0,0.00019994,2]
[360686015,1746928240740,-184.99266375,0.00019994,2]
[360686016,1746928240750,-1108.59,0.00019994,2]
[360686017,1746928240759,-400.0,0.00019994,2]
[360686018,1746928240769,-400.0,0.00019994,2]
[360686019,1746928240778,-400.0,0.00019994,2]
[360686020,1746928240788,-400.0,0.00019994,2]
[360686021,1746928240797,-498.3833925,0.00019994,2]
[360686022,1746928240806,-401.03716686,0.00019994,2]
[360686023,1746928240815,-789.9,0.00019994,2]
[360686024,1746928240824,-400.0,0.00019994,2]
[360686025,1746928240834,-442.28102954,0.00019994,2]
[360686026,1746928240843,-341.90381994,0.00019994,2]
[360686027,1746928240852,-400.0,0.00019994,2]
[360686028,1746928240861,-400.0,0.00019994,2]
[360686029,1746928240871,-400.0,0.00019994,2]
[360686030,1746928240880,-400.0,0.00019994,2]
[360686031,1746928240889,-400.0,0.00019994,2]
[360686032,1746928240899,-347.40993043,0.00019994,2]
[360686033,1746928240908,-371.7518292,0.00019994,2]
[360686034,1746928240917,-400.0,0.00019994,2]
[360686035,1746928240926,-255.83181364,0.00019994,2]
[360686036,1746928240935,-668.33,0.00019994,2]
[360686037,1746928240945,-400.0,0.00019994,2]
[360686038,1746928240956,-400.0,0.00019994,2]
[360686039,1746928240965,-188.49914205,0.00019994,2]
[360686040,1746928240975,-400.0,0.00019994,2]
[360686041,1746928240984,-400.0,0.00019994,2]
[360686042,1746928240994,-400.0,0.00019994,2]
[360686043,1746928241003,-400.0,0.00019994,2]
[360686044,1746928241012,-443.20676073,0.00019994,2]
[360686045,1746928241021,-400.0,0.00019994,2]
[360686046,1746928241031,-534.92395225,0.00019994,2]
[360686047,1746928241040,-400.0,0.00019994,2]
[360686048,1746928241049,-400.0,0.00019994,2]
[360686049,1746928241058,-400.0,0.00019994,2]
[360686050,1746928241067,-550.53,0.00019994,2]
[360686051,1746928241076,-400.0,0.00019994,2]
[360686052,1746928241085,-400.0,0.00019994,2]
[360686053,1746928241095,-400.0,0.00019994,2]
[360686054,1746928241104,-400.0,0.00019994,2]
[360686055,1746928241117,-400.0,0.00019994,2]
[360686056,1746928241126,-589.13,0.00019994,2]
[360686057,1746928241135,-400.0,0.00019994,2]
[360686058,1746928241145,-400.0,0.00019994,2]
[360686059,1746928241155,-400.0,0.00019994,2]
[360686060,1746928241166,-400.0,0.00019994,2]
[360686061,1746928241175,-355.599575,0.00019994,2]
[360686062,1746928241184,-400.0,0.00019994,2]
[360686063,1746928241194,-583.84,0.00019994,2]
[360686064,1746928241203,-548.96415104,0.00019994,2]
[360686065,1746928241212,-400.0,0.00019995,2]
[360686066,1746928241222,-400.0,0.00019995,2]
[360686067,1746928241231,-400.0,0.00019995,2]
[360686068,1746928241241,-400.0,0.00019995,2]
[360686069,1746928241250,-400.0,0.00019995,2]
[360686070,1746928241260,-400.0,0.00019995,2]
[360686071,1746928241269,-400.0,0.00019995,2]
[360686072,1746928241279,-400.0,0.00019995,2]
[360686073,1746928241288,-416.53,0.00019995,2]
[360686074,1746928241297,-433.98155126,0.00019995,2]
[360686075,1746928241307,-400.0,0.00019995,2]
[360686076,1746928241316,-453.48296267,0.00019995,2]
[360686077,1746928241326,-434.77745642,0.00019995,2]
[360686078,1746928241335,-464.51254049,0.00019995,2]
[360686079,1746928241344,-400.0,0.00019995,2]
[360686080,1746928241354,-449.48838516,0.00019995,2]
[360686081,1746928241363,-533.01086301,0.00019995,2]
[360686082,1746928241373,-457.9541865,0.00019995,2]
[360686083,1746928241382,-410.85115233,0.00019995,2]
[360686084,1746928241391,-450.36466872,0.00019995,2]
[360686085,1746928241401,-400.0,0.00019995,2]
[360686086,1746928241410,-407.75848333,0.00019995,2]
[360686087,1746928241419,-417.66556148,0.00019995,2]
[360686088,1746928241428,-429.09802885,0.00019995,2]
[360686089,1746928241439,-446.68330513,0.00019995,2]
[360686090,1746928241448,-425.28908307,0.00019995,2]
[360686091,1746928241457,-400.0,0.00019995,2]
[360686092,1746928241467,-426.23225618,0.00019995,2]
[360686093,1746928241476,-423.35371604,0.00019995,2]
[360686094,1746928241486,-421.38053705,0.00019995,2]
[360686095,1746928241496,-400.0,0.00019995,2]
[360686096,1746928241506,-535.82584156,0.00019995,2]
[360686097,1746928241516,-400.0,0.00019995,2]
[360686098,1746928241526,-400.0,0.00019995,2]
[360686099,1746928241535,-400.0,0.00019995,2]
[360686100,1746928241544,-409.13228984,0.00019995,2]
[360686101,1746928241554,-435.2880905,0.00019995,2]
[360686102,1746928241563,-436.22323794,0.00019995,2]
[360686103,1746928241573,-436.40638248,0.00019995,2]
[360686104,1746928241582,-400.0,0.00019995,2]
[360686105,1746928241591,-465.30574766,0.00019995,2]
[360686106,1746928241601,-411.54596174,0.00019995,2]
[360686107,1746928241610,-437.90590921,0.00019995,2]
[360686108,1746928241619,-400.0,0.00019995,2]
[360686109,1746928241628,-433.08760212,0.00019995,2]
[360686110,1746928241638,-428.74276062,0.00019995,2]
[360686111,1746928241647,-400.0,0.00019995,2]
[360686112,1746928241656,-400.0,0.00019995,2]
[360686113,1746928241665,-445.56713245,0.00019995,2]
[360686114,1746928241675,-152.94086842,0.00019995,2]
[360686115,1746928241684,-400.0,0.00019995,2]
[360686116,1746928241694,-428.04718689,0.00019995,2]
[360686117,1746928241704,-445.93147687,0.00019995,2]
[360686118,1746928241714,-430.58832128,0.00019995,2]
[360686119,1746928241723,-431.44456797,0.00019995,2]
[360686120,1746928241733,-446.83154321,0.00019995,2]
[360686121,1746928241742,-427.12604301,0.00019995,2]
[360686122,1746928241752,-468.12777082,0.00019995,2]
[360686123,1746928241762,-403.35826708,0.00019995,2]
[360686124,1746928241771,-433.91770881,0.00019995,2]
[360686125,1746928241780,-539.05727827,0.00019995,2]
[360686126,1746928241790,-400.0,0.00019995,2]
[360686127,1746928241799,-430.14658856,0.00019995,2]
[360686128,1746928241809,-400.0,0.00019995,2]
[360686129,1746928241818,-400.0,0.00019995,2]
[360686130,1746928241828,-400.0,0.00019995,2]
[360686131,1746928241837,-444.37539053,0.00019995,2]
[360686132,1746928241846,-432.66321315,0.00019995,2]
[360686133,1746928241855,-419.50678262,0.00019995,2]
[360686134,1746928241865,-424.45185277,0.00019995,2]
[360686135,1746928241874,-400.0,0.00019995,2]
[360686136,1746928241883,-400.0,0.00019995,2]
[360686137,1746928241893,-434.87902506,0.00019995,2]
[360686138,1746928241903,-442.99742726,0.00019995,2]
[360686139,1746928241912,-440.24800796,0.00019995,2]
[360686140,1746928241922,-464.33111156,0.00019995,2]
[360686141,1746928241931,-471.48,0.00019995,2]
[360686142,1746928241940,-470.70389125,0.00019995,2]
[360686143,1746928241950,-469.73400221,0.00019995,2]
[360686144,1746928241959,-400.0,0.00019995,2]
[360686145,1746928241968,-445.05549792,0.00019995,2]
[360686146,1746928241977,-435.87606007,0.00019995,2]
[360686147,1746928241987,-439.91104631,0.00019995,2]
[360686148,1746928241997,-413.3537083,0.00019995,2]
[360686149,1746928242006,-461.5913729,0.00019995,2]
[360686150,1746928242016,-416.49491921,0.00019995,2]
[360686151,1746928242025,-418.37505458,0.00019995,2]
[360686152,1746928242034,-420.78889657,0.00019995,2]
[360686153,1746928242043,-400.0,0.00019995,2]
[360686154,1746928242053,-400.0,0.00019995,2]
[360686155,1746928242062,-411.29285508,0.00019995,2]
[360686156,1746928242071,-414.71696253,0.00019995,2]
[360686157,1746928242081,-400.0,0.00019995,2]
[360686158,1746928242090,-416.52985835,0.00019995,2]
[360686159,1746928242100,-400.0,0.00019995,2]
[360686160,1746928242110,-409.64603164,0.00019995,2]
[360686161,1746928242120,-400.0,0.00019995,2]
[360686162,1746928242130,-401.38802093,0.00019995,2]
[360686163,1746928242139,-400.0,0.00019995,2]
[360686164,1746928242148,-408.07248678,0.00019995,2]
[360686165,1746928242159,-511.87235503,0.00019995,2]
[360686166,1746928242168,-403.10620497,0.00019995,2]
[360686167,1746928242178,-269.66828556,0.00019995,2]
[360686168,1746928242188,-400.46532858,0.00019995,2]
[360686169,1746928242198,-402.10854471,0.00019995,2]
[360686170,1746928242208,-513.44244413,0.00019995,2]
[360686171,1746928242217,-411.84416576,0.00019995,2]
[360686172,1746928242226,-500.0,0.00019995,2]
[360686173,1746928242235,-430.86637169,0.00019995,2]
[360686174,1746928242246,-411.20400341,0.00019995,2]
[360686175,1746928242255,-401.52396421,0.00019995,2]
[360686176,1746928242264,-409.44940516,0.00019995,2]
[360686177,1746928242274,-332.41495563,0.00019995,2]
[360686178,1746928242283,-428.34582148,0.00019995,2]
[360686179,1746928242292,-456.34185221,0.00019995,2]
[360686180,1746928242303,-400.26102847,0.00019995,2]
[360686181,1746928242312,-404.63930698,0.00019995,2]
[360686182,1746928242322,-504.40652299,0.00019995,2]
[360686183,1746928242331,-401.79607534,0.00019995,2]
[360686184,1746928242340,-473.80501073,0.00019995,2]
[360686185,1746928242349,-400.0,0.00019995,2]
[360686186,1746928242359,-400.70752194,0.00019995,2]
[360686187,1746928242368,-402.38920822,0.00019995,2]
[360686188,1746928242377,-400.0,0.00019995,2]
[360686189,1746928242386,-150.68118088,0.00019995,2]
[360686190,1746928242395,-510.55816799,0.00019995,2]